fUSD/lending_fUSD_20240313
["ID","MTS","AMOUNT","RATE_DAILY","PERIOD"]
[318555213,1710289837930,-293.28,0.00015554,2]
[318555215,1710289837941,-499.99,0.00015557,2]
[318555217,1710289837951,-349.52,0.00015561,2]
[318555219,1710289837960,-293.28,0.00015595,2]
[318555221,1710289837970,-185.30478745,0.00015619,2]
[318555223,1710289837980,-293.28,0.00015635,2]
[318555225,1710289837991,-171.24,0.00015748,2]
[318555228,1710289838001,-300.0,0.00015806,2]
[318555230,1710289838011,-964.18088153,0.00015807,2]
[318555232,1710289838020,-167.0,0.00015831,2]
[318555234,1710289838030,-23900.0,0.00016017,2]
[318555235,1710289838040,-1135.56,0.00016082,2]
[318555236,1710289838050,-563.4,0.00016213,2]
[318555237,1710289838059,-563.4,0.00016281,2]
[318555239,1710289838069,-964.18088153,0.00016322,2]
[318555241,1710289838079,-563.4,0.00016349,2]
[318555242,1710289838089,-563.4,0.00016418,2]
[318555246,1710289838099,-1000.0,0.00016425,2]
[318555249,1710289838109,-362.850314,0.00016438,2]
[318555252,1710289838119,-200.0,0.00016438,2]
[318555254,1710289838128,-563.4,0.00016486,2]
[318555257,1710289838138,-210.0,0.00016511,2]
[318555259,1710289838147,-563.4,0.00016554,2]
[318555261,1710289838157,-170.03,0.00016578,2]
[318555263,1710289838166,-563.4,0.00016622,2]
[318555265,1710289838176,-563.4,0.00016691,2]
[318555267,1710289838185,-563.4,0.00016759,2]
[318555269,1710289838195,-563.4,0.00016827,2]
[318555271,1710289838204,-964.18088153,0.00016838,2]
[318555273,1710289838214,-563.4,0.00016895,2]
[318555275,1710289838224,-563.4,0.00016964,2]
[318555277,1710289838233,-563.4,0.00017032,2]
[318555279,1710289838243,-4572.36,0.00017094,2]
[318555281,1710289838253,-173.60039412,0.00017096,2]
[318555283,1710289838262,-563.4,0.000171,2]
[318555285,1710289838272,-171.24,0.00017118,2]
[318555288,1710289838286,-563.4,0.00017169,2]
[318555290,1710289838296,-300.0,0.00017176,2]
[318555292,1710289838306,-231.90185224,0.00017223,2]
[318555294,1710289838315,-563.4,0.00017237,2]
[318555296,1710289838325,-362.850314,0.0001726,2]
[318555298,1710289838336,-563.4,0.00017305,2]
[318555300,1710289838345,-563.4,0.00017373,2]
[318555302,1710289838355,-1468.33422092,0.00017407,2]
[318555304,1710289838365,-563.4,0.00017442,2]
[318555306,1710289838374,-563.4,0.0001751,2]
[318555309,1710289838384,-188.33,0.00017808,10]
[318555311,1710289838394,-1005.33,0.00017839,2]
[318555313,1710289838403,-1200.0,0.000179,6]
[318555315,1710289838413,-1005.33,0.00017914,2]
[318555317,1710289838423,-174.84,0.00017968,2]
[318555319,1710289838433,-1005.33,0.00017989,2]
[318555321,1710289838444,-363.20289345,0.00018,2]
[318555323,1710289838453,-5000.0,0.00018,3]
[318555325,1710289838464,-1005.33,0.00018064,2]
[318555327,1710289838473,-362.850314,0.00018082,2]
[318555329,1710289838483,-166.67,0.00018088,2]
[318555331,1710289838493,-1005.33,0.00018139,2]
[318555333,1710289838503,-293.0,0.00018162,2]
[318555335,1710289838512,-1005.33,0.00018214,2]
[318555337,1710289838523,-1125.97834949,0.0001822,2]
[318555339,1710289838533,-2865.99148317,0.00018221,2]
[318555342,1710289838543,-10074.873,0.00018223,2]
[318555344,1710289838557,-7768.6313,0.00018223,2]
[318555346,1710289838568,-57804.865,0.00018225,2]
[318555348,1710289838578,-185.97036817,0.00018226,2]
[318555350,1710289838591,-1000.0,0.0001825,2]
[318555353,1710289838602,-1005.33,0.00018289,2]
[318555355,1710289838613,-422.99222833,0.00018314,2]
[318555357,1710289838624,-155.0,0.00018323,2]
[318555359,1710289838634,-2795.71008234,0.00018323,2]
[318555361,1710289838644,-155.0,0.00018323,2]
[318555363,1710289838654,-156.07781826,0.00018323,2]
[318555365,1710289838664,-1565.16975109,0.00018323,2]
[318555366,1710289838673,-10421.91339404,0.00018323,2]
[318555367,1710289838683,-195.47771099,0.00018323,2]
[318555368,1710289838694,-609.67545639,0.00018323,2]
[318555369,1710289838704,-3086.30159127,0.00018323,2]
[318555370,1710289838714,-23162.23542163,0.00018323,2]
[318555371,1710289838725,-522.01731839,0.00018323,2]
[318555372,1710289838735,-444.51426008,0.00018323,2]
[318555373,1710289838745,-12460.01420126,0.00018323,2]
[318555374,1710289838755,-155.83907568,0.00018323,2]
[318555375,1710289838766,-276.77268804,0.00018323,2]
[318555376,1710289838776,-486.5513835,0.00018323,2]
[318555377,1710289838786,-155.0,0.00018323,2]
[318555378,1710289838797,-353.56850614,0.00018323,2]
[318555379,1710289838807,-3358.88072273,0.00018323,2]
[318555380,1710289838817,-3064.17598895,0.00018323,2]
[318555381,1710289838827,-155.0,0.00018323,2]
[318555382,1710289838839,-155.0,0.00018323,2]
[318555383,1710289838848,-658.32466982,0.00018323,2]
[318555384,1710289838858,-237.75488677,0.00018324,2]
[318555385,1710289838867,-312.64728985,0.00018324,2]
[318555386,1710289838877,-1189.55293649,0.00018324,2]
[318555387,1710289838886,-55746.86018026,0.00018324,2]
[318555388,1710289838896,-1135.56,0.00018346,2]
[318555389,1710289838905,-1005.33,0.00018364,2]
[318555390,1710289838917,-1005.33,0.0001844,2]
[318555391,1710289838927,-167.0,0.00018444,2]
[318555392,1710289838937,-171.24,0.00018488,2]
[318555393,1710289838946,-1600.0,0.000185,6]
[318555394,1710289838957,-1005.33,0.00018515,2]
[318555395,1710289838966,-185.97036816,0.00018563,2]
[318555396,1710289838976,-1005.33,0.0001859,2]
[318555397,1710289838986,-151.666666,0.00018597,3]
[318555398,1710289838996,-151.666666,0.00018597,3]
[318555399,1710289839005,-151.666666,0.00018597,3]
[318555400,1710289839015,-151.666666,0.00018597,3]
[318555401,1710289839025,-151.666666,0.00018597,2]
[318555402,1710289839034,-151.666666,0.00018597,2]
[318555403,1710289839044,-151.666666,0.00018597,2]
[318555404,1710289839053,-151.666666,0.00018597,2]
[318555405,1710289839062,-166.666666,0.00018597,3]
[318555406,1710289839072,-166.666666,0.00018597,2]
[318555407,1710289839082,-166.666666,0.00018597,2]
[318555408,1710289839094,-166.666666,0.00018597,3]
[318555409,1710289839104,-41395.6812,0.00018599,2]
[318555410,1710289839114,-2000.0,0.000186,6]
[318555411,1710289839123,-3720.97237836,0.00018609,2]
[318555412,1710289839133,-170.03,0.00018651,2]
[318555413,1710289839143,-1005.33,0.00018665,2]
[318555414,1710289839153,-188.33,0.00018681,10]
[318555415,1710289839162,-151.666666,0.00018687,2]
[318555416,1710289839172,-151.666666,0.00018687,2]
[318555417,1710289839182,-151.666666,0.00018687,2]
[318555418,1710289839192,-151.666666,0.00018687,2]
[318555419,1710289839202,-151.666666,0.00018687,2]
[318555420,1710289839212,-151.666666,0.00018687,3]
[318555421,1710289839222,-151.666666,0.00018687,3]
[318555422,1710289839233,-151.666666,0.00018687,3]
[318555423,1710289839245,-151.666666,0.00018687,3]
[318555424,1710289839255,-151.666666,0.00018687,3]
[318555425,1710289839266,-151.666666,0.00018687,3]
[318555426,1710289839276,-151.666666,0.00018687,3]
[318555427,1710289839287,-247.77120291,0.00018696,2]
[318555428,1710289839297,-155.0,0.00018696,2]
[318555429,1710289839308,-151.666666,0.00018697,2]
[318555430,1710289839318,-151.666666,0.00018697,2]
[318555431,1710289839328,-151.666666,0.00018697,2]
[318555432,1710289839338,-151.666666,0.00018697,2]
[318555433,1710289839348,-151.666666,0.00018697,2]
[318555434,1710289839358,-151.666666,0.00018697,2]
[318555435,1710289839368,-151.666666,0.00018697,3]
[318555436,1710289839377,-151.666666,0.00018697,3]
[318555437,1710289839386,-151.666666,0.00018697,3]
[318555438,1710289839395,-151.666666,0.00018697,3]
[318555439,1710289839405,-166.666666,0.00018697,3]
[318555440,1710289839415,-100000.0,0.00018699,2]
[318555441,1710289839425,-1000.0,0.00018699,2]
[318555442,1710289839610,-886.02616766,0.00018699,2]
[318555443,1710289839620,-400.0,0.000187,6]
[318555444,1710289839629,-168.20922729,0.00018707,2]
[318555445,1710289839638,-357.61747705,0.00018708,2]
[318555446,1710289839647,-1005.33,0.0001874,2]
[318555447,1710289839657,-886.02616766,0.00018749,2]
[318555448,1710289839666,-605.82697186,0.00018789,2]
[318555449,1710289839675,-75972.0,0.00018795,2]
[318555450,1710289839685,-19442.0,0.00018795,2]
[318555451,1710289839694,-7654.0,0.00018795,2]
[318555452,1710289839703,-151.666666,0.00018798,2]
[318555453,1710289839712,-151.666666,0.00018798,2]
[318555454,1710289839721,-151.666666,0.00018798,2]
[318555455,1710289839730,-151.666666,0.00018798,2]
[318555456,1710289839739,-151.666666,0.00018798,3]
[318555457,1710289839748,-151.666666,0.00018798,3]
[318555458,1710289839758,-151.666666,0.00018798,3]
[318555459,1710289839767,-151.666666,0.00018798,3]
[318555460,1710289839776,-151.666666,0.00018798,3]
[318555461,1710289839785,-166.666666,0.00018798,2]
[318555462,1710289839794,-546.5746618,0.00018799,2]
[318555463,1710289839802,-546.5746618,0.00018799,2]
[318555464,1710289839811,-245000.0,0.00018799,2]
[318555465,1710289839820,-886.02616766,0.000188,2]
[318555466,1710289839829,-500.0,0.000188,2]
[318555467,1710289839840,-39699.6594,0.000188,2]
[318555468,1710289839849,-400.0,0.000188,6]
[318555469,1710289839859,-1005.33,0.00018815,2]
[318555470,1710289839868,-886.02616766,0.0001885,2]
[318555471,1710289839877,-1005.33,0.0001889,2]
[318555472,1710289839887,-151.666666,0.00018898,3]
[318555473,1710289839898,-151.666666,0.00018898,3]
[318555474,1710289839910,-151.666666,0.00018898,3]
[318555475,1710289839919,-151.666666,0.00018898,3]
[318555476,1710289839928,-151.666666,0.00018898,3]
[318555477,1710289839939,-151.666666,0.00018898,2]
[318555478,1710289839947,-151.666666,0.00018898,2]
[318555479,1710289839956,-151.666666,0.00018898,2]
[318555480,1710289839965,-166.666666,0.00018898,2]
[318555481,1710289839975,-315.69269174,0.00018898,2]
[318555482,1710289839984,-1177.21526284,0.00018899,2]
[318555484,1710289839994,-315.69269174,0.00018899,2]
[318555485,1710289840003,-296.50329409,0.000189,2]
[318555486,1710289840013,-31470.65762275,0.000189,2]
[318555487,1710289840022,-9688.55142708,0.000189,2]
[318555488,1710289840032,-185.97036816,0.000189,2]
[318555489,1710289840041,-3000.0,0.000189,2]
[318555490,1710289840051,-400.0,0.000189,6]
[318555491,1710289840060,-154.62593125,0.000189,2]
[318555492,1710289840071,-886.02616766,0.000189,2]
[318555493,1710289840080,-1177.21526284,0.000189,2]
[318555494,1710289840090,-152.84781155,0.000189,3]
[318555495,1710289840099,-315.69269174,0.000189,2]
[318555496,1710289840108,-185.61926963,0.000189,2]
[318555497,1710289840117,-12013.61140469,0.000189,2]
[318555498,1710289840127,-173.60039412,0.000189,2]
[318555499,1710289840136,-362.850314,0.00018904,2]
[318555500,1710289840145,-1005.33,0.00018965,2]
[318555501,1710289840154,-152.5969785,0.0001899,2]
[318555502,1710289840163,-605.82697186,0.0001899,2]
[318555503,1710289840172,-151.666666,0.00018996,2]
[318555504,1710289840182,-151.666666,0.00018996,2]
[318555505,1710289840191,-151.666666,0.00018996,2]
[318555506,1710289840201,-151.666666,0.00018996,2]
[318555507,1710289840210,-151.666666,0.00018996,2]
[318555508,1710289840219,-151.666666,0.00018996,2]
[318555509,1710289840228,-151.666666,0.00018996,3]
[318555510,1710289840237,-151.666666,0.00018996,3]
[318555511,1710289840246,-151.666666,0.00018996,3]
[318555512,1710289840255,-151.666666,0.00018996,3]
[318555513,1710289840264,-155.00004,0.00018996,3]
[318555514,1710289840273,-81897.9341062,0.00018997,2]
[318555515,1710289840283,-151.666666,0.00018997,3]
[318555516,1710289840293,-151.666666,0.00018997,3]
[318555517,1710289840304,-151.666666,0.00018997,3]
[318555518,1710289840315,-151.666666,0.00018997,3]
[318555519,1710289840325,-151.666666,0.00018997,3]
[318555520,1710289840335,-151.666666,0.00018997,3]
[318555521,1710289840345,-151.666666,0.00018997,2]
[318555522,1710289840355,-151.666666,0.00018997,2]
[318555523,1710289840365,-151.666666,0.00018997,2]
[318555524,1710289840375,-151.666666,0.00018997,2]
[318555525,1710289840384,-151.666666,0.00018997,2]
[318555526,1710289840393,-151.666666,0.00018997,2]
[318555527,1710289840403,-587856.33861802,0.00018997,2]
[318555528,1710289840412,-249.56439489,0.00018998,2]
[318555529,1710289840421,-207.20256402,0.00018998,2]
[318555530,1710289840431,-193.70138316,0.00018998,2]
[318555531,1710289840440,-155.34437507,0.00018998,2]
[318555532,1710289840449,-163.44466925,0.00018998,2]
[318555533,1710289840459,-184.32712896,0.00018998,2]
[318555534,1710289840468,-238.1522046,0.00018998,2]
[318555535,1710289840478,-666.88668811,0.00018998,2]
[318555536,1710289840487,-222.50852152,0.00018998,2]
[318555537,1710289840496,-177.12921293,0.00018998,2]
[318555538,1710289840505,-155.00000036,0.00018998,2]
[318555539,1710289840514,-155.29768641,0.00018998,2]
[318555540,1710289840523,-232.89254773,0.00018998,2]
[318555541,1710289840533,-155.3694788,0.00018998,2]
[318555542,1710289840541,-272.60263945,0.00018998,2]
[318555543,1710289840551,-155.05453662,0.00018998,2]
[318555544,1710289840561,-239.61850085,0.00018998,2]
[318555545,1710289840570,-200.11575586,0.00018998,2]
[318555546,1710289840579,-221.08612935,0.00018998,2]
[318555547,1710289840589,-184.28532024,0.00018998,2]
[318555548,1710289840599,-1918.81676619,0.00018998,2]
[318555549,1710289840609,-155.0,0.00018998,2]
[318555550,1710289840618,-501.39118322,0.00018998,2]
[318555551,1710289840628,-155.30769382,0.00018998,2]
[318555552,1710289840637,-265.04645795,0.00018998,2]
[318555553,1710289840647,-155.47213853,0.00018998,2]
[318555554,1710289840656,-408.48479098,0.00018998,2]
[318555555,1710289840666,-162.3918919,0.00018998,2]
[318555556,1710289840677,-151.666666,0.00018998,3]
[318555557,1710289840686,-151.666666,0.00018998,3]
[318555558,1710289840696,-151.666666,0.00018998,3]
[318555559,1710289840706,-151.666666,0.00018998,3]
[318555560,1710289840717,-151.666666,0.00018998,2]
[318555561,1710289840727,-151.666666,0.00018998,2]
[318555562,1710289840736,-151.666666,0.00018998,2]
[318555563,1710289840746,-151.666666,0.00018998,2]
[318555564,1710289840756,-205.88337639,0.00018999,2]
[318555565,1710289840766,-259.98513075,0.00018999,2]
[318555566,1710289840776,-155.96003373,0.00018999,2]
[318555567,1710289840786,-1183.56443161,0.00018999,5]
[318555568,1710289840796,-1000.0,0.00018999,2]
[318555569,1710289840805,-1000.0,0.00018999,2]
[318555570,1710289840814,-574.2335,0.00018999,2]
[318555571,1710289840824,-1000.0,0.00018999,2]
[318555572,1710289840834,-737.58085603,0.00019,3]
[318555573,1710289840845,-6662290.33009197,0.00019,2]
[318555574,1710289841579,-4286361.43031503,0.00019,2]
[318555575,1710289841589,-1360.25950231,0.00019,2]
[318555576,1710289841599,-2295635.36858827,0.00019,2]
[318555577,1710289841609,-750.0,0.00019,3]
[318555578,1710289841618,-2000.0,0.00019,2]
[318555579,1710289841628,-200.0,0.00019,2]
[318555580,1710289841637,-465.72731021,0.00019,2]
[318555581,1710289841647,-151.0,0.00019,2]
[318555582,1710289841657,-151.0,0.00019,2]
[318555583,1710289841667,-499.505729,0.00019,2]
[318555584,1710289841676,-499.505729,0.00019,2]
[318555585,1710289841686,-151.854605,0.00019,2]
[318555586,1710289841695,-151.854605,0.00019,2]
[318555587,1710289841704,-151.0,0.00019,2]
[318555588,1710289841714,-151.0,0.00019,2]
[318555589,1710289841724,-151.0,0.00019,2]
[318555590,1710289841734,-171.705046,0.00019,2]
[318555591,1710289841743,-171.705046,0.00019,2]
[318555592,1710289841753,-151.0,0.00019,2]
[318555593,1710289841762,-151.0,0.00019,2]
[318555594,1710289841771,-151.0,0.00019,2]
[318555595,1710289841780,-151.0,0.00019,2]
[318555596,1710289841789,-263.89168,0.00019,2]
[318555597,1710289841798,-151.0,0.00019,2]
[318555598,1710289841814,-151.0,0.00019,2]
[318555599,1710289841835,-151.0,0.00019,2]
[318555600,1710289841853,-151.0,0.00019,2]
[318555601,1710289841873,-151.0,0.00019,2]
[318555602,1710289841889,-151.0,0.00019,2]
[318555603,1710289841907,-151.0,0.00019,2]
[318555604,1710289841928,-154.626194,0.00019,2]
[318555605,1710289841944,-154.626194,0.00019,2]
[318555606,1710289841965,-151.0,0.00019,2]
[318555607,1710289841981,-151.0,0.00019,2]
[318555608,1710289842000,-260179.6476472,0.0001901,2]
[318555609,1710289842020,-153.51,0.00019037,2]
[318555610,1710289842038,-1005.33,0.00019041,2]
[318555611,1710289842050,-467.99069315,0.00019073,2]
[318555612,1710289842066,-31470.65762275,0.00019088,2]
[318555613,1710289842082,-1005.33,0.00019116,2]
[318555614,1710289842095,-1112.78,0.00019178,2]
[318555615,1710289842115,-250.0,0.00019178,2]
[318555616,1710289842131,-154.09,0.00019178,2]
[318555617,1710289842148,-233.08722092,0.00019178,2]
[318555618,1710289842162,-210.68,0.0001918,2]
[318555619,1710289842177,-210.68,0.0001918,2]
[318555620,1710289842191,-210.68,0.0001918,2]
[318555621,1710289842205,-210.68,0.0001918,2]
[318555622,1710289842219,-210.68,0.0001918,2]
[318555623,1710289842234,-210.68,0.0001918,2]
[318555624,1710289842248,-210.68,0.0001918,2]
[318555625,1710289842263,-210.68,0.0001918,2]
[318555626,1710289842278,-210.68,0.0001918,2]
[318555627,1710289842292,-210.68,0.0001918,2]
[318555628,1710289842307,-2000.0,0.0001919,2]
[318555629,1710289842321,-200.0,0.0001919,2]
[318555630,1710289842336,-1005.33,0.00019191,2]
[318555631,1710289842350,-7190.37013374,0.000192,2]
[318555632,1710289842364,-3000.0,0.0001921,2]
[318555633,1710289842379,-1005.33,0.00019266,2]
[318555634,1710289842394,-31470.65762275,0.00019277,2]
[318555635,1710289842408,-180.0,0.00019288,2]
[318555636,1710289842422,-2000.0,0.00019382,2]
[318555637,1710289842437,-200.0,0.00019382,2]
[318555639,1710289842452,-1122.5745984,0.00019421,2]
[318555641,1710289842466,-31470.65762275,0.00019465,2]
[318555645,1710289842481,-2866.985722,0.000195,2]
[318555647,1710289842497,-3000.0,0.0001952,2]
[318555648,1710289842511,-188.33,0.00019553,10]
[318555649,1710289842526,-200.0,0.00019576,2]
[318555650,1710289842542,-297.19,0.00019604,15]
[318555651,1710289842557,-150.5,0.00019614,15]
[318555652,1710289842572,-1000.0,0.00019624,2]
[318555653,1710289842588,-31470.65762275,0.00019654,2]
[318555654,1710289842604,-362.850314,0.00019726,2]
[318555655,1710289842620,-2170.78,0.00019726,2]
[318555656,1710289842636,-30003.0176003,0.000198,2]
[318555657,1710289842652,-3000.0,0.0001983,2]
[318555658,1710289842668,-4572.36,0.00019834,2]
[318555659,1710289842684,-31470.65762275,0.00019842,2]
[318555660,1710289842700,-921.63,0.00019892,2]
[318555661,1710289842716,-921.63,0.00019892,2]
[318555662,1710289842731,-921.63,0.00019892,2]
[318555663,1710289842756,-1125.33,0.00019892,2]
[318555664,1710289842772,-1399.43,0.000199,2]
[318555665,1710289842787,-1467848.239206,0.0001993,2]
[318555666,1710289842803,-151.0,0.0001993,2]
[318555667,1710289842819,-151.0,0.0001993,2]
[318555668,1710289842836,-151.0,0.0001993,2]
[318555669,1710289842854,-151.0,0.0001993,2]
[318555670,1710289842879,-151.0,0.0001993,2]
[318555671,1710289842898,-151.0,0.0001993,2]
[318555672,1710289842916,-151.0,0.0001993,2]
[318555673,1710289842933,-152.481182,0.0001993,2]
[318555674,1710289842950,-151.0,0.0001993,2]
[318555675,1710289842966,-151.0,0.0001993,2]
[318555676,1710289842983,-151.0,0.0001993,2]
[318555677,1710289843000,-151.0,0.0001993,2]
[318555678,1710289843017,-151.0,0.0001993,2]
[318555679,1710289843033,-151.757081,0.0001993,2]
[318555680,1710289843049,-151.0,0.0001993,2]
[318555681,1710289843065,-151.0,0.0001993,2]
[318555682,1710289843080,-151.0,0.0001993,2]
[318555683,1710289843096,-151.0,0.0001993,2]
[318555684,1710289843111,-151.0,0.0001993,2]
[318555685,1710289843125,-152.09925,0.0001993,2]
[318555686,1710289843140,-1173.599915,0.0001993,2]
[318555687,1710289843155,-1173.599915,0.0001993,2]
[318555688,1710289843170,-151.0,0.0001993,2]
[318555689,1710289843184,-151.0,0.0001993,2]
[318555690,1710289843198,-1072.130614,0.0001993,2]
[318555691,1710289843213,-1072.130614,0.0001993,2]
[318555692,1710289843227,-730.497646,0.0001993,2]
[318555693,1710289843243,-151.0,0.0001993,2]
[318555694,1710289843256,-730.497646,0.0001993,2]
[318555695,1710289843272,-151.0,0.0001993,2]
[318555696,1710289843286,-151.0,0.0001993,2]
[318555697,1710289843303,-169.526929,0.0001993,2]
[318555698,1710289843542,-151.0,0.0001993,2]
[318555699,1710289843553,-151.0,0.0001993,2]
[318555700,1710289843562,-151.0,0.0001993,2]
[318555701,1710289843572,-151.0,0.0001993,2]
[318555702,1710289843582,-151.0,0.0001993,2]
[318555703,1710289843591,-151.0,0.0001993,2]
[318555704,1710289843600,-189.006048,0.0001993,2]
[318555705,1710289843610,-189.006048,0.0001993,2]
[318555706,1710289843620,-151.0,0.0001993,2]
[318555707,1710289843629,-293.615227,0.0001993,2]
[318555708,1710289843638,-293.615227,0.0001993,2]
[318555709,1710289843648,-151.0,0.0001993,2]
[318555710,1710289843657,-151.0,0.0001993,2]
[318555711,1710289843667,-151.0,0.0001993,2]
[318555712,1710289843676,-151.0,0.0001993,2]
[318555713,1710289843686,-151.140526,0.0001993,2]
[318555714,1710289843696,-151.0,0.0001993,2]
[318555715,1710289843706,-151.0,0.0001993,2]
[318555716,1710289843715,-151.0,0.0001993,2]
[318555717,1710289843724,-499.505729,0.0001993,2]
[318555718,1710289843734,-499.505729,0.0001993,2]
[318555719,1710289843744,-151.854605,0.0001993,2]
[318555720,1710289843753,-151.854605,0.0001993,2]
[318555721,1710289843762,-151.0,0.0001993,2]
[318555722,1710289843772,-151.0,0.0001993,2]
[318555723,1710289843781,-151.0,0.0001993,2]
[318555724,1710289843790,-171.705046,0.0001993,2]
[318555725,1710289843800,-171.705046,0.0001993,2]
[318555726,1710289843810,-151.0,0.0001993,2]
[318555727,1710289843818,-151.0,0.0001993,2]
[318555728,1710289843828,-158.646532,0.0001993,2]
[318555729,1710289843837,-151.0,0.0001993,2]
[318555730,1710289843848,-151.0,0.0001993,2]
[318555731,1710289843857,-151.0,0.0001993,2]
[318555732,1710289843867,-151.0,0.0001993,2]
[318555733,1710289843877,-151.0,0.0001993,2]
[318555734,1710289843887,-151.0,0.0001993,2]
[318555735,1710289843899,-151.0,0.0001993,2]
[318555736,1710289843911,-154.626194,0.0001993,2]
[318555737,1710289843920,-154.626194,0.0001993,2]
[318555738,1710289843929,-151.0,0.0001993,2]
[318555739,1710289843939,-151.0,0.0001993,2]
[318555740,1710289843949,-151.0,0.0001993,2]
[318555741,1710289843958,-461.582827,0.0001993,2]
[318555742,1710289843967,-500.0,0.00019941,2]
[318555743,1710289843979,-2170.78,0.00019974,2]
[318555744,1710289843988,-399.17134535,0.00019999,2]
[318555745,1710289843997,-166.47605008,0.00019999,2]
[318555746,1710289844007,-500.0,0.00019999,2]
[318555747,1710289844016,-500.0,0.00019999,2]
[318555748,1710289844026,-500.0,0.00019999,2]
[318555749,1710289844034,-500.0,0.00019999,2]
[318555750,1710289844044,-500.0,0.00019999,2]
[318555751,1710289844054,-500.0,0.00019999,2]
[318555752,1710289844063,-419.14015994,0.00019999,2]
[318555753,1710289844072,-350.00000001,0.00019999,2]
[318555754,1710289844081,-500.0,0.00019999,2]
[318555755,1710289844093,-363.01696923,0.0002,2]
[318555756,1710289844103,-1785.53618659,0.0002,5]
[318555757,1710289844113,-1847.01134335,0.0002,2]
[318555758,1710289844122,-405.7560142,0.0002,2]
[318555759,1710289844132,-1500.0,0.0002,2]
[318555760,1710289844141,-31470.65762275,0.00020031,2]
[318555761,1710289844151,-1000.0,0.00020075,2]
[318555762,1710289844161,-1019.02581864,0.00020116,2]
[318555763,1710289844171,-3000.0,0.0002014,2]
[318555764,1710289844181,-1764.88134564,0.00020166,2]
[318555765,1710289844190,-31470.65762275,0.00020219,2]
[318555766,1710289844200,-2170.78,0.00020222,2]
[318555767,1710289844209,-489.3,0.00020269,2]
[318555768,1710289844219,-31470.65762275,0.00020408,2]
[318555769,1710289844229,-3000.0,0.0002046,2]
[318555770,1710289844238,-150.0,0.00020461,2]
[318555771,1710289844248,-2170.78,0.0002047,2]
[318555772,1710289844258,-1500.0,0.000205,2]
[318555773,1710289844268,-362.850314,0.00020548,2]
[318555774,1710289844278,-2994.0,0.00020548,2]
[318555775,1710289844287,-717.76,0.00020556,2]
[318555776,1710289844296,-300.0,0.00020569,2]
[318555777,1710289844307,-31470.65762275,0.00020596,2]
[318555778,1710289844317,-1135.56,0.0002061,2]
[318555779,1710289844328,-1000.0,0.000207,2]
[318555780,1710289844338,-414.54,0.00020714,2]
[318555781,1710289844351,-414.43,0.00020714,2]
[318555782,1710289844361,-152.39,0.00020714,2]
[318555783,1710289844371,-150.0,0.00020714,2]
[318555784,1710289844380,-516.22,0.00020714,2]
[318555785,1710289844390,-150.32,0.00020714,2]
[318555786,1710289844399,-150.0,0.00020714,2]
[318555787,1710289844408,-150.0,0.00020714,2]
[318555788,1710289844418,-516.22,0.00020714,2]
[318555789,1710289844427,-150.0,0.00020714,2]
[318555790,1710289844436,-150.0,0.00020714,2]
[318555791,1710289844446,-414.54,0.00020714,2]
[318555792,1710289844455,-346.47,0.00020714,2]
[318555793,1710289844464,-150.0,0.00020714,2]
[318555794,1710289844474,-346.47,0.00020714,2]
[318555795,1710289844483,-516.22,0.00020714,2]
[318555796,1710289844493,-150.0,0.00020714,2]
[318555797,1710289844502,-414.54,0.00020714,2]
[318555798,1710289844510,-150.0,0.00020714,2]